[Event "SVK Extraliga 2019-20"]
[Site "Slovakia"]
[Date "2019.10.20"]
[Round "2.6"]
[White "Csonka, Attila Istvan"]
[Black "Najgebauer, Szemjon"]
[Result "1/2-1/2"]
[ECO "B33"]
[WhiteElo "2355"]
[BlackElo "2186"]
[Annotator "ChessBase"]
[PlyCount "119"]
[EventDate "2019.10.19"]
[EventType "team-tourn"]
[EventCountry "SVK"]
[SourceTitle "playchess.com"]
[Source "ChessBase"]
[SourceQuality "1"]
[TimeControl "40/5400+30:1800+30"]

1. e4 {[%emt 0:00:00]} c5 {[%emt 0:00:23]} 2. Nf3 {[%emt 0:00:00]} Nc6 {[%emt 0:00:22]} 3. d4 {[%emt 0:00:00]} cxd4 {[%emt 0:00:15]} 4. Nxd4 {[%emt 0:00:00]} Nf6 {[%emt 0:00:38]} 5. Nc3 {[%emt 0:00:05]} e5 {[%emt 0:01:11]} 6. Ndb5 {[%emt 0:00:05]} d6 {[%emt 0:00:42]} 7. Bg5 {[%emt 0:00:05]} a6 {[%emt 0:00:16]} 8. Na3 {[%emt 0:00:04]} b5 {[%emt 0:00:26]} 9. Nd5 {[%emt 0:00:06]} Be7 {[%emt 0:00:05]} 10. Bxf6 {[%emt 0:00:04]} Bxf6 {[%emt 0:00:06]} 11. c4 {[%emt 0:00:04]} b4 {[%emt 0:01:50]} 12. Nc2 {[%emt 0:00:05]} Rb8 {[%emt 0:03:44]} 13. b3 {[%emt 0:00:07]} Bg5 {[%emt 0:02:38]} 14. g3 {[%emt 0:00:47]} O-O {[%emt 0:00:54]} 15. h4 {[%emt 0:00:51]} Bh6 {[%emt 0:00:58]} 16. Bh3 {[%emt 0:00:07]} Be6 {[%emt 0:02:15]} 17. Kf1 {[%emt 0:00:14]} a5 {[%emt 0:04:00]} 18. Kg2 {[%emt 0:04:49]} Rb7 {[%emt 0:05:07]} 19. Qh5 {[%emt 0:02:15]} Nb8 {[%emt 0:11:40]} 20. Bf5 {[%emt 0:02:05]} Bxd5 {[%emt 0:09:38]} 21. cxd5 {[%emt 0:02:14]} Nd7 {[%emt 0:01:30]} 22. Ne3 {[%emt 0:06:23]} Nf6 {[%emt 0:04:13]} 23. Qf3 {[%emt 0:01:45]} Bxe3 {[%emt 0:01:15]} 24. Qxe3 {[%emt 0:01:34]} Nd7 {[%emt 0:08:04]} 25. h5 {[%emt 0:10:23]} Nc5 {[%emt 0:02:14]} 26. Rh4 {[%emt 0:05:25]} h6 {[%emt 0:06:38]} 27. Rhh1 {[%emt 0:04:39]} Qe7 {[%emt 0:03:26]} 28. Rac1 {[%emt 0:01:30]} Ra8 {[%emt 0:01:08]} 29. Rhd1 {[%emt 0:01:47]} Qg5 {[%emt 0:02:11]} 30. Qe2 {[%emt 0:02:51]} a4 {[%emt 0:03:11]} 31. Rxc5 {[%emt 0:00:59]} dxc5 {[%emt 0:00:09]} 32. d6 {[%emt 0:00:16]} axb3 {[%emt 0:03:54]} 33. axb3 {[%emt 0:00:15]} Rd8 {[%emt 0:03:15]} 34. Rd5 {[%emt 0:02:02]} Qf6 {[%emt 0:03:36]} 35. Qa6 {[%emt 0:04:41]} Rbb8 {[%emt 0:00:55]} 36. Qc6 {[%emt 0:00:07]} g6 {[%emt 0:01:37]} 37. Bh3 {[%emt 0:00:05]} gxh5 {[%emt 0:05:27]} 38. Qxc5 {[%emt 0:01:37]} h4 {[%emt 0:00:09]} 39. d7 {[%emt 0:01:44]} hxg3 {[%emt 0:00:41]} 40. fxg3 {[%emt 0:00:09]} Ra8 {[%emt 0:01:15]} 41. Rd2 {[%emt 0:30:11]} Qg5 {[%emt 0:19:42]} 42. Rf2 {[%emt 0:00:00]} Kh8 {[%emt 0:09:22]} 43. Bf5 {[%emt 0:00:00]} f6 {[%emt 0:02:51]} 44. Qxb4 {[%emt 0:00:00]} Rg8 {[%emt 0:00:28]} 45. Qc3 {[%emt 0:00:00]} Qh4 {[%emt 0:02:13]} 46. Qf3 {[%emt 0:00:00]} Ra1 {[%emt 0:01:49]} 47. Bh3 {[%emt 0:00:00]} Rxg3+ {[%emt 0:02:36]} 48. Qxg3 {[%emt 0:00:00]} Rg1+ {[%emt 0:00:07]} 49. Kxg1 {[%emt 0:00:00]} Qxg3+ {[%emt 0:00:06]} 50. Rg2 {[%emt 0:00:00]} Qe3+ {[%emt 0:00:07]} 51. Rf2 {[%emt 0:02:06]} Qg3+ {[%emt 0:00:06]} 52. Bg2 {[%emt 0:02:25]} Qd3 {[%emt 0:01:01]} 53. Rxf6 {[%emt 0:02:14]} Kg7 {[%emt 0:01:02]} 54. Rf3 {[%emt 0:04:05]} Qxd7 {[%emt 0:00:11]} 55. Kh2 {[%emt 0:02:05]} Qd4 {[%emt 0:00:40]} 56. Rg3+ {[%emt 0:03:54]} Kf6 {[%emt 0:00:12]} 57. Rf3+ {[%emt 0:00:17]} Kg6 {[%emt 0:00:28]} 58. Rg3+ {[%emt 0:07:24]} Kf6 {[%emt 0:00:15]} 59. Rf3+ {[%emt 0:02:31]} Kg6 {[%emt 0:00:21]} 60. Rg3+ {[%emt 0:00:37]} 1/2-1/2

[Event "SVK Extraliga 2019-20"]
[Site "Slovakia"]
[Date "2019.10.22"]
[Round "2.6"]
[White "Schwarz, Dusan"]
[Black "Kostolansky, Sebastian Lukas"]
[Result "0-1"]
[ECO "A65"]
[WhiteElo "2315"]
[BlackElo "2418"]
[Annotator "ChessBase"]
[PlyCount "84"]
[EventDate "2019.10.19"]
[EventType "team-tourn"]
[EventCountry "SVK"]
[SourceTitle "playchess.com"]
[Source "ChessBase"]
[SourceQuality "1"]
[WhiteTeam "Slovakia"]
[BlackTeam "Slovakia"]
[WhiteTeamCountry "SVK"]
[BlackTeamCountry "SVK"]
[TimeControl "40/5400+30:1800+30"]

1. d4 {[%emt 0:00:00]} Nf6 {[%emt 0:00:00]} 2. c4 {[%emt 0:00:01]} g6 {[%emt 0:00:00]} 3. Nc3 {[%emt 0:00:13]} Bg7 {[%emt 0:00:00]} 4. e4 {[%emt 0:00:19]} d6 {[%emt 0:00:04]} 5. f3 {[%emt 0:00:49]} O-O {[%emt 0:00:08]} 6. Nge2 {[%emt 0:00:00]} c5 {[%emt 0:10:00]} 7. d5 {[%emt 0:00:21]} e6 {[%emt 0:04:39]} 8. Ng3 {[%emt 0:00:30]} exd5 {[%emt 0:00:06]} 9. cxd5 {[%emt 0:00:08]} Na6 {[%emt 0:01:09]} 10. Be2 {[%emt 0:02:03]} Nc7 {[%emt 0:02:00]} 11. a4 {[%emt 0:01:03]} a6 {[%emt 0:11:01]} 12. O-O {[%emt 0:01:34]} b6 {[%emt 0:04:55]} 13. Bg5 {[%emt 0:03:05]} h6 {[%emt 0:02:33]} 14. Be3 {[%emt 0:02:53]} Re8 {[%emt 0:00:46]} 15. Qd2 {[%emt 0:01:06]} Kh7 {[%emt 0:00:07]} 16. Rab1 {[%emt 0:05:40]} Bb7 {[%emt 0:10:29]} 17. Rfe1 {[%emt 0:14:50]} Nfxd5 {[%emt 0:06:45]} 18. Bf2 {[%emt 0:05:37]} Nb4 {[%emt 0:03:10]} 19. a5 {[%emt 0:01:52]} b5 {[%emt 0:04:13]} 20. Rbd1 {[%emt 0:06:38]} Ne6 {[%emt 0:08:37]} 21. Qxd6 {[%emt 0:03:11]} Bd4 {[%emt 0:02:21]} 22. Rxd4 {[%emt 0:09:36]} Nxd4 {[%emt 0:03:00]} 23. Qxc5 {[%emt 0:00:54]} Nxe2+ {[%emt 0:00:06]} 24. Rxe2 {[%emt 0:05:54]} Nd3 {[%emt 0:09:19]} 25. Qb6 {[%emt 0:00:55]} Qxb6 {[%emt 0:00:13]} 26. Bxb6 {[%emt 0:00:19]} Rac8 {[%emt 0:02:15]} 27. Rd2 {[%emt 0:07:19]} Nxb2 {[%emt 0:03:34]} 28. Rd7 {[%emt 0:00:07]} Kg8 {[%emt 0:01:30]} 29. Rxb7 {[%emt 0:05:39]} Rxc3 {[%emt 0:00:05]} 30. Ne2 {[%emt 0:00:25]} Ra3 {[%emt 0:04:11]} 31. Ra7 {[%emt 0:07:47]} Nd3 {[%emt 0:00:26]} 32. h4 {[%emt 0:01:01]} b4 {[%emt 0:01:22]} 33. h5 {[%emt 0:08:45]} g5 {[%emt 0:04:21]} 34. Rb7 {[%emt 0:01:49]} b3 {[%emt 0:01:26]} 35. Bd4 {[%emt 0:00:13]} b2 {[%emt 0:00:43]} 36. Nc3 {[%emt 0:01:15]} Rc8 {[%emt 0:01:00]} 37. Nd5 {[%emt 0:00:29]} Rc1+ {[%emt 0:00:38]} 38. Kh2 {[%emt 0:00:04]} b1=Q {[%emt 0:00:30]} 39. Nf6+ {[%emt 0:02:41]} Kf8 {[%emt 0:00:06]} 40. Nd7+ {[%emt 0:01:45]} Ke8 {[%emt 0:00:38]} 41. Nf6+ {[%emt 0:30:32]} Kd8 {[%emt 0:30:05]} 42. Bb6+ {[%emt 0:00:00]} Kc8 {[%emt 0:00:00]} 0-1

[Event "SVK Extraliga 2019-20"]
[Site "Slovakia"]
[Date "2019.10.20"]
[Round "2.6"]
[White "Vojtek, Vladimir"]
[Black "Bochnickova, Andrea"]
[Result "1-0"]
[ECO "C42"]
[WhiteElo "2312"]
[BlackElo "2122"]
[Annotator "NA"]
[PlyCount "77"]
[EventDate "2019.10.19"]
[EventType "team-tourn"]
[EventCountry "SVK"]
[SourceTitle "playchess.com"]
[Source "ChessBase"]
[SourceQuality "1"]
[WhiteTeam "Dubnica"]
[TimeControl "40/5400+30:1800+30"]

1. e4 {[%emt 0:00:00]} e5 {[%emt 0:00:00]} 2. Nf3 {[%emt 0:00:00]} Nf6 {[%emt 0:00:00]} 3. Nxe5 {[%emt 0:00:14]} d6 {[%emt 0:00:10]} 4. Nd3 {[%emt 0:01:10]} Nxe4 {[%emt 0:00:30]} 5. Qe2 {[%emt 0:00:05]} Qe7 {[%emt 0:00:32]} 6. Nf4 $11 {[%emt 0:00:09]} c6 {[%emt 0:01:06]} 7. Nc3 {[%emt 0:07:18]} Nxc3 {[%emt 0:03:23]} 8. dxc3 {[%emt 0:00:05]} Qxe2+ {[%emt 0:02:54]} 9. Bxe2 {[%emt 0:00:06]} Bf5 {[%emt 0:00:16]} 10. Nd3 {[%emt 0:02:09]} d5 {[%emt 0:01:20]} 11. Be3 {[%emt 0:01:19]} Be7 {[%emt 0:02:58]} 12. O-O-O {[%emt 0:01:45]} Nd7 {[%emt 0:06:54]} 13. g4 {[%emt 0:03:53]} Be4 {[%emt 0:12:29]} 14. f3 {[%emt 0:01:04]} Bxd3 {[%emt 0:01:12]} 15. cxd3 {[%emt 0:05:18]} O-O {[%emt 0:03:06]} 16. f4 {[%emt 0:12:38]} Rfe8 {[%emt 0:01:08]} 17. Kd2 {[%emt 0:01:30]} b5 {[%emt 0:03:53]} 18. g5 {[%emt 0:01:26]} Bc5 {[%emt 0:02:51]} 19. d4 {[%emt 0:00:56]} Bd6 {[%emt 0:01:59]} 20. Bg4 {[%emt 0:09:34]} Nb6 {[%emt 0:02:33]} 21. b3 {[%emt 0:01:58]} Re7 {[%emt 0:02:02]} 22. Kd3 {[%emt 0:05:51]} a5 {[%emt 0:07:10]} 23. h4 {[%emt 0:07:09]} a4 {[%emt 0:08:36]} 24. f5 {[%emt 0:09:27]} f6 {[%emt 0:23:45]} 25. gxf6 {[%emt 0:03:00]} gxf6 {[%emt 0:00:19]} 26. Rhg1 {[%emt 0:00:08]} Kh8 {[%emt 0:00:54]} 27. h5 {[%emt 0:04:49]} Rae8 {[%emt 0:05:19]} 28. Bd2 {[%emt 0:01:45]} Re4 {[%emt 0:00:40]} 29. Bf3 {[%emt 0:03:40]} Rh4 {[%emt 0:00:14]} 30. Rde1 {[%emt 0:01:55]} Rd8 {[%emt 0:03:34]} 31. Re6 {[%emt 0:01:38]} c5 {[%emt 0:00:45]} 32. Bh6 {[%emt 0:01:45]} c4+ {[%emt 0:00:54]} 33. bxc4 {[%emt 0:01:36]} bxc4+ {[%emt 0:01:39]} 34. Ke3 {[%emt 0:00:22]} Bf8 {[%emt 0:00:43]} 35. Bxf8 {[%emt 0:00:28]} Rxf8 {[%emt 0:00:03]} 36. Rxb6 {[%emt 0:00:14]} Rh2 {[%emt 0:00:21]} 37. Bxd5 {[%emt 0:00:46]} Rxh5 {[%emt 0:00:27]} 38. Bxc4 {[%emt 0:00:29]} Rc8 {[%emt 0:00:23]} 39. Rxf6 {[%emt 0:01:12]} 1-0

[Event "SVK Extraliga 2019-20"]
[Site "Slovakia"]
[Date "2019.10.20"]
[Round "2.6"]
[White "Cibickova, Zuzana"]
[Black "Pinter, Erik"]
[Result "1/2-1/2"]
[ECO "B10"]
[WhiteElo "2258"]
[BlackElo "2350"]
[Annotator "NA"]
[PlyCount "100"]
[EventDate "2019.10.19"]
[EventType "team-tourn"]
[EventCountry "SVK"]
[SourceTitle "playchess.com"]
[Source "ChessBase"]
[SourceQuality "1"]
[WhiteTeam "Komarno"]
[BlackTeam "Snina"]
[TimeControl "40/5400+30:1800+30"]

1. e4 {[%emt 0:00:00]} c6 {[%emt 0:00:21]} 2. Nc3 {[%emt 0:01:04]} d5 {[%emt 0:00:15]} 3. Nf3 {[%emt 0:00:18]} dxe4 {[%emt 0:02:27]} 4. Nxe4 {[%emt 0:00:14]} Nf6 {[%emt 0:00:09]} 5. Nxf6+ {[%emt 0:00:55]} exf6 {[%emt 0:00:18]} 6. d4 {[%emt 0:01:04]} Bd6 {[%emt 0:00:12]} 7. Be2 {[%emt 0:10:39]} O-O {[%emt 0:01:28]} 8. O-O {[%emt 0:00:32]} Re8 {[%emt 0:00:45]} 9. b3 {[%emt 0:03:02]} Nd7 {[%emt 0:13:00]} 10. Bb2 {[%emt 0:00:27]} a5 {[%emt 0:00:59]} 11. a3 {[%emt 0:15:52]} Nf8 {[%emt 0:00:22]} 12. Re1 {[%emt 0:01:39]} Ng6 {[%emt 0:02:44]} 13. Bf1 {[%emt 0:04:42]} Nf4 {[%emt 0:07:13]} 14. Rxe8+ Qxe8 {[%emt 0:00:07]} 15. Ne1 {[%emt 0:06:08]} Bf5 {[%emt 0:22:46]} 16. Nd3 {[%emt 0:04:16]} Ne6 {[%emt 0:01:11]} 17. Qf3 {[%emt 0:07:59]} Bg6 {[%emt 0:01:26]} 18. h4 $11 {[%emt 0:01:07]} h5 {[%emt 0:03:29]} 19. Re1 {[%emt 0:11:19]} Qd7 {[%emt 0:13:00]} 20. Rd1 {[%emt 0:09:57]} Qe7 {[%emt 0:11:01]} 21. a4 {[%emt 0:04:22]} Rd8 {[%emt 0:02:31]} 22. c3 {[%emt 0:03:29]} Ba3 {[%emt 0:02:44]} 23. Bc1 {[%emt 0:02:11]} Bxc1 {[%emt 0:02:27]} 24. Nxc1 {[%emt 0:00:47]} Nc7 {[%emt 0:04:13]} 25. Bd3 {[%emt 0:02:22]} Nd5 {[%emt 0:00:45]} 26. Bxg6 fxg6 {[%emt 0:00:09]} 27. c4 {[%emt 0:03:59]} Nc7 {[%emt 0:02:41]} 28. Ne2 {[%emt 0:01:06]} Kh7 {[%emt 0:02:13]} 29. Nf4 {[%emt 0:00:26]} Qf7 {[%emt 0:00:30]} 30. Qc3 {[%emt 0:00:41]} b6 {[%emt 0:00:50]} 31. Qf3 {[%emt 0:00:50]} Ne6 {[%emt 0:00:23]} 32. Nxe6 {[%emt 0:00:30]} Qxe6 {[%emt 0:00:30]} 33. g3 {[%emt 0:03:09]} Rd6 {[%emt 0:02:14]} 34. Kg2 {[%emt 0:00:50]} Qd7 {[%emt 0:00:47]} 35. Qf4 {[%emt 0:00:09]} Qd8 {[%emt 0:00:23]} 36. Rd3 {[%emt 0:00:46]} Qd7 {[%emt 0:00:10]} 37. Rd2 {[%emt 0:00:32]} Qd8 {[%emt 0:00:06]} 38. Qe4 {[%emt 0:00:04]} Qd7 {[%emt 0:00:35]} 39. d5 {[%emt 0:01:14]} Qd8 {[%emt 0:01:05]} 40. Rd3 {[%emt 0:00:25]} Kh6 {[%emt 0:00:54]} 41. Kf1 {[%emt 0:05:23]} Kh7 {[%emt 0:01:39]} 42. Ke2 {[%emt 0:01:23]} Qc8 {[%emt 0:04:16]} 43. Qf4 {[%emt 0:04:43]} Qd7 {[%emt 0:05:18]} 44. dxc6 {[%emt 0:04:50]} Re6+ {[%emt 0:00:16]} 45. Re3 {[%emt 0:05:28]} Rxc6 {[%emt 0:03:52]} 46. Kf1 {[%emt 0:04:17]} Rd6 {[%emt 0:02:30]} 47. Kg2 {[%emt 0:02:39]} Rd1 {[%emt 0:05:30]} 48. Qf3 {[%emt 0:00:43]} Rd2 {[%emt 0:00:59]} 49. Re2 {[%emt 0:01:14]} Rxe2 {[%emt 0:07:18]} 50. Qxe2 {[%emt 0:00:02]} Qd4 {[%emt 0:00:45]} 1/2-1/2

[Event "SVK Extraliga 2019-20"]
[Site "Slovakia"]
[Date "2019.10.20"]
[Round "2.7"]
[White "Briestensky, Rastislav"]
[Black "Banas, Kamil"]
[Result "1-0"]
[ECO "C44"]
[WhiteElo "2344"]
[BlackElo "2280"]
[Annotator "ChessBase"]
[PlyCount "29"]
[EventDate "2019.10.19"]
[EventType "team-tourn"]
[EventCountry "SVK"]
[SourceTitle "playchess.com"]
[Source "ChessBase"]
[SourceQuality "1"]
[WhiteTeam "Slovakia"]
[BlackTeam "Slovakia"]
[WhiteTeamCountry "SVK"]
[BlackTeamCountry "SVK"]
[TimeControl "40/5400+30:1800+30"]

1. e4 {[%emt 0:00:00]} e5 {[%emt 0:01:05]} 2. Nf3 {[%emt 0:00:00]} Nf6 {[%emt 0:00:01]} 3. d3 {[%emt 0:06:07]} Nc6 {[%emt 0:01:04]} 4. c4 {[%emt 0:00:43]} Bc5 {[%emt 0:04:05]} 5. Be2 {[%emt 0:03:05]} d6 {[%emt 0:01:43]} 6. O-O {[%emt 0:00:28]} Bg4 {[%emt 0:03:59]} 7. Nc3 {[%emt 0:03:58]} h6 {[%emt 0:02:29]} 8. Be3 {[%emt 0:10:32]} a5 {[%emt 0:21:56]} 9. Nb5 {[%emt 0:17:07]} Qe7 {[%emt 0:05:08]} 10. h3 {[%emt 0:08:58]} Bc8 {[%emt 0:02:22]} 11. Nc3 {[%emt 0:03:33]} Nd8 {[%emt 0:06:35]} 12. d4 {[%emt 0:09:26]} exd4 {[%emt 0:01:24]} 13. Nxd4 {[%emt 0:00:26]} Nxe4 {[%emt 0:05:42]} 14. Nd5 {[%emt 0:02:35]} Qd7 {[%emt 0:01:15]} 15. Bg4 {[%emt 0:04:13]} 1-0

[Event "SVK Extraliga 2019-20"]
[Site "Slovakia"]
[Date "2019.10.20"]
[Round "2.7"]
[White "Krak, Tomas"]
[Black "Maslikova, Veronika"]
[Result "1-0"]
[ECO "A05"]
[WhiteElo "2269"]
[BlackElo "2230"]
[Annotator "NA"]
[PlyCount "41"]
[EventDate "2019.10.19"]
[EventType "team-tourn"]
[EventCountry "SVK"]
[SourceTitle "playchess.com"]
[Source "ChessBase"]
[SourceQuality "1"]
[WhiteTeam "Snina"]
[BlackTeam "Podhajska"]
[TimeControl "40/5400+30:1800+30"]

1. Nf3 {[%emt 0:00:00]} Nf6 {[%emt 0:00:02]} 2. c4 {[%emt 0:00:05]} e6 {[%emt 0:02:26]} 3. g3 {[%emt 0:00:20]} Be7 {[%emt 0:03:31]} 4. Bg2 {[%emt 0:00:12]} O-O {[%emt 0:00:07]} 5. O-O {[%emt 0:00:13]} d6 {[%emt 0:01:36]} 6. d4 {[%emt 0:03:55]} Nbd7 {[%emt 0:00:28]} 7. Nc3 {[%emt 0:02:18]} Re8 {[%emt 0:03:10]} 8. b3 {[%emt 0:03:56]} e5 {[%emt 0:08:59]} 9. Qc2 {[%emt 0:02:48]} c6 {[%emt 0:02:31]} 10. Bb2 {[%emt 0:02:53]} Qc7 {[%emt 0:02:52]} 11. Rfd1 {[%emt 0:06:45]} a5 $14 {[%emt 0:12:36]} 12. c5 {[%emt 0:28:17]} Qb8 {[%emt 0:14:24]} 13. cxd6 {[%emt 0:08:45]} Bxd6 {[%emt 0:00:27]} 14. Ng5 {[%emt 0:15:00]} exd4 {[%emt 0:24:24]} 15. Rxd4 {[%emt 0:00:09]} h6 {[%emt 0:00:51]} 16. Nf3 {[%emt 0:09:37]} Bc5 {[%emt 0:04:58]} 17. Rf4 {[%emt 0:02:22]} Bd6 {[%emt 0:04:18]} 18. Rh4 {[%emt 0:02:13]} Ra6 {[%emt 0:02:53]} 19. Rd1 {[%emt 0:00:13]} Bf8 {[%emt 0:02:11]} 20. Ne4 {[%emt 0:01:01]} c5 {[%emt 0:01:49]} 21. e3 {[%emt 0:04:20]} 1-0

[Event "SVK Extraliga 2019-20"]
[Site "Slovakia"]
[Date "2019.10.20"]
[Round "2.7"]
[White "Danada, Tomas"]
[Black "Kantorik, Marian"]
[Result "1/2-1/2"]
[ECO "C41"]
[WhiteElo "2266"]
[BlackElo "2165"]
[Annotator "ChessBase"]
[PlyCount "30"]
[EventDate "2019.10.19"]
[EventType "team-tourn"]
[EventCountry "SVK"]
[SourceTitle "playchess.com"]
[Source "ChessBase"]
[SourceQuality "1"]
[WhiteTeam "Prakovce"]
[BlackTeam "Dunajov"]
[TimeControl "40/5400+30:1800+30"]

1. e4 {[%emt 0:00:00]} d6 {[%emt 0:00:00]} 2. d4 {[%emt 0:00:00]} Nf6 {[%emt 0:00:00]} 3. Nc3 {[%emt 0:00:00]} e5 {[%emt 0:00:00]} 4. Nf3 {[%emt 0:00:00]} Nbd7 {[%emt 0:00:06]} 5. Bc4 {[%emt 0:00:00]} Be7 {[%emt 0:00:17]} 6. O-O {[%emt 0:00:06]} O-O {[%emt 0:00:14]} 7. a4 {[%emt 0:00:22]} c6 {[%emt 0:00:15]} 8. Re1 {[%emt 0:01:10]} b6 {[%emt 0:03:24]} 9. d5 {[%emt 0:03:19]} cxd5 {[%emt 0:01:17]} 10. Nxd5 {[%emt 0:00:42]} Nxd5 {[%emt 0:00:15]} 11. Bxd5 {[%emt 0:00:04]} Rb8 {[%emt 0:00:10]} 12. Qd3 {[%emt 0:15:24]} Nf6 {[%emt 0:02:01]} 13. Bb3 {[%emt 0:02:00]} Nd7 {[%emt 0:03:44]} 14. Bd5 {[%emt 0:02:36]} Nf6 {[%emt 0:06:17]} 15. Bb3 {[%emt 0:07:12]} Nd7 {[%emt 0:01:54]} 1/2-1/2

[Event "SVK Extraliga 2019-20"]
[Site "Slovakia"]
[Date "2019.10.20"]
[Round "2.7"]
[White "Motycakova, Monika"]
[Black "Zvarik, Martin"]
[Result "1-0"]
[ECO "C73"]
[WhiteElo "2126"]
[BlackElo "2314"]
[Annotator "NA"]
[PlyCount "83"]
[EventDate "2019.10.19"]
[EventType "team-tourn"]
[EventCountry "SVK"]
[SourceTitle "playchess.com"]
[Source "ChessBase"]
[SourceQuality "1"]
[WhiteTeam "Liptovska"]
[BlackTeam "Zilina"]
[TimeControl "40/5400+30:1800+30"]

1. e4 {[%emt 0:00:00]} e5 {[%emt 0:00:00]} 2. Nf3 {[%emt 0:00:00]} Nc6 {[%emt 0:00:36]} 3. Bb5 {[%emt 0:00:26]} a6 {[%emt 0:00:22]} 4. Ba4 {[%emt 0:00:06]} d6 {[%emt 0:00:20]} 5. Bxc6+ bxc6 {[%emt 0:00:21]} 6. d4 {[%emt 0:07:25]} Nf6 {[%emt 0:15:45]} 7. Nc3 {[%emt 0:10:55]} exd4 {[%emt 0:06:29]} 8. Qxd4 {[%emt 0:01:01]} Be7 {[%emt 0:05:09]} 9. e5 {[%emt 0:12:22]} Ng4 {[%emt 0:04:16]} 10. Bf4 {[%emt 0:08:53]} dxe5 {[%emt 0:06:23]} 11. Qxd8+ {[%emt 0:00:50]} Bxd8 {[%emt 0:00:18]} 12. Nxe5 {[%emt 0:01:18]} O-O {[%emt 0:09:36]} 13. O-O {[%emt 0:18:41]} Nxe5 {[%emt 0:12:44]} 14. Bxe5 {[%emt 0:00:03]} Bf5 {[%emt 0:00:17]} 15. Rfe1 {[%emt 0:08:56]} Re8 {[%emt 0:12:02]} 16. Bf4 {[%emt 0:12:51]} Re6 {[%emt 0:08:42]} 17. Rxe6 {[%emt 0:02:58]} Bxe6 {[%emt 0:02:43]} 18. Rd1 {[%emt 0:05:32]} Bf5 {[%emt 0:06:34]} 19. Rd2 {[%emt 0:01:00]} g5 {[%emt 0:01:51]} 20. Be5 {[%emt 0:00:43]} h5 {[%emt 0:01:56]} 21. Ne2 {[%emt 0:03:31]} f6 {[%emt 0:01:35]} 22. Bc3 {[%emt 0:00:02]} Kf7 {[%emt 0:01:14]} 23. Nd4 {[%emt 0:01:14]} Bd7 {[%emt 0:00:21]} 24. Nb3 {[%emt 0:00:26]} Be6 {[%emt 0:00:42]} 25. Nc5 {[%emt 0:00:27]} Bd5 {[%emt 0:00:25]} 26. b3 {[%emt 0:01:05]} Be7 {[%emt 0:00:38]} 27. Bd4 {[%emt 0:00:28]} Re8 {[%emt 0:00:21]} 28. Kf1 {[%emt 0:01:28]} Bd6 {[%emt 0:01:15]} 29. c4 {[%emt 0:00:14]} Be4 {[%emt 0:00:26]} 30. Nxa6 {[%emt 0:01:23]} Bf4 {[%emt 0:01:02]} 31. Be3 {[%emt 0:00:24]} Bxh2 {[%emt 0:00:19]} 32. Rd7+ {[%emt 0:00:13]} Re7 {[%emt 0:00:44]} 33. Rxe7+ {[%emt 0:00:50]} Kxe7 {[%emt 0:00:10]} 34. Nc5 {[%emt 0:00:27]} Bc2 {[%emt 0:00:12]} 35. g3 {[%emt 0:00:12]} f5 {[%emt 0:01:09]} 36. Bxg5+ {[%emt 0:00:35]} Kd6 {[%emt 0:00:13]} 37. Nb7+ {[%emt 0:00:37]} Ke5 {[%emt 0:00:27]} 38. Kg2 {[%emt 0:00:26]} Bxg3 {[%emt 0:00:15]} 39. fxg3 {[%emt 0:00:15]} Bb1 {[%emt 0:01:03]} 40. a4 {[%emt 0:00:16]} Kd4 {[%emt 0:00:24]} 41. a5 {[%emt 0:31:22]} Be4+ {[%emt 0:30:38]} 42. Kf2 {[%emt 0:00:00]} 1-0

[Event "SVK Extraliga 2019-20"]
[Site "Slovakia"]
[Date "2019.10.20"]
[Round "2.7"]
[White "Tropp, Lukas"]
[Black "Meszaros, Michal"]
[Result "1/2-1/2"]
[ECO "B06"]
[WhiteElo "2106"]
[BlackElo "2358"]
[Annotator "NA"]
[PlyCount "108"]
[EventDate "2019.10.19"]
[EventType "team-tourn"]
[EventCountry "SVK"]
[SourceTitle "playchess.com"]
[Source "ChessBase"]
[SourceQuality "1"]
[BlackTeam "Streda"]
[TimeControl "40/5400+30:1800+30"]

1. e4 {[%emt 0:00:00]} g6 {[%emt 0:00:48]} 2. d4 {[%emt 0:01:15]} Bg7 {[%emt 0:00:02]} 3. Nc3 {[%emt 0:00:20]} d6 {[%emt 0:00:07]} 4. f4 {[%emt 0:03:16]} a6 {[%emt 0:01:10]} 5. a4 {[%emt 0:08:27]} Nd7 {[%emt 0:04:23]} 6. Nf3 {[%emt 0:04:57]} e6 {[%emt 0:03:53]} 7. Bc4 {[%emt 0:04:46]} Ne7 {[%emt 0:02:04]} 8. O-O {[%emt 0:00:43]} O-O {[%emt 0:08:07]} 9. Qe1 {[%emt 0:11:31]} d5 {[%emt 0:05:07]} 10. Ba2 {[%emt 0:10:12]} c6 {[%emt 0:11:06]} 11. e5 {[%emt 0:09:13]} (11. a5 $5) 11... b5 {[%emt 0:11:57]} 12. Ne2 {[%emt 0:04:45]} c5 {[%emt 0:10:21]} 13. Bb1 {[%emt 0:05:16]} b4 {[%emt 0:07:05]} 14. a5 {[%emt 0:05:59]} Rb8 {[%emt 0:06:00]} 15. dxc5 {[%emt 0:01:05]} Nxc5 {[%emt 0:05:16]} 16. Ned4 {[%emt 0:00:04]} Qc7 {[%emt 0:05:50]} 17. Bd2 {[%emt 0:04:33]} Qb7 {[%emt 0:00:34]} 18. Qh4 $15 {[%emt 0:03:57]} Ne4 {[%emt 0:06:15]} 19. Be3 {[%emt 0:01:30]} Nf5 {[%emt 0:02:14]} 20. Nxf5 {[%emt 0:00:46]} exf5 {[%emt 0:00:01]} 21. Ba2 {[%emt 0:05:11]} Be6 {[%emt 0:01:45]} 22. Rfd1 {[%emt 0:03:13]} Rfc8 {[%emt 0:01:13]} 23. Bb3 {[%emt 0:03:28]} Bf8 {[%emt 0:02:23]} 24. Ng5 {[%emt 0:01:04]} h6 {[%emt 0:03:21]} 25. Nxe4 {[%emt 0:03:44]} dxe4 {[%emt 0:00:02]} 26. Bxe6 {[%emt 0:00:30]} fxe6 {[%emt 0:00:01]} 27. Rd2 {[%emt 0:00:35]} Qe7 {[%emt 0:01:25]} 28. Qg3 {[%emt 0:00:23]} Kh7 {[%emt 0:00:40]} 29. Rad1 {[%emt 0:00:03]} Rb7 {[%emt 0:00:37]} 30. Qf2 {[%emt 0:00:56]} Qe8 {[%emt 0:00:32]} 31. Qe2 {[%emt 0:01:02]} Qa4 {[%emt 0:00:39]} 32. Qxa6 {[%emt 0:00:29]} Rcc7 {[%emt 0:00:30]} 33. Qxe6 {[%emt 0:00:46]} Qxa5 {[%emt 0:00:28]} 34. Rd8 {[%emt 0:00:47]} Rf7 {[%emt 0:00:29]} 35. R8d7 {[%emt 0:01:05]} Rbxd7 {[%emt 0:00:18]} 36. Rxd7 {[%emt 0:00:06]} Rxd7 {[%emt 0:00:06]} 37. Qxd7+ {[%emt 0:00:04]} Bg7 {[%emt 0:01:02]} 38. e6 {[%emt 0:02:19]} b3 {[%emt 0:00:31]} 39. Qd2 {[%emt 0:00:39]} Qa1+ {[%emt 0:00:33]} 40. Qc1 {[%emt 0:00:26]} Qa6 {[%emt 0:00:31]} 41. e7 {[%emt 0:04:46]} Qe6 {[%emt 0:03:39]} 42. cxb3 {[%emt 0:07:43]} Qxe7 {[%emt 0:00:44]} 43. Qc4 {[%emt 0:01:06]} Qh4 {[%emt 0:09:05]} 44. Qe2 {[%emt 0:02:41]} Qe7 {[%emt 0:04:12]} 45. Qd2 {[%emt 0:00:28]} Qe6 {[%emt 0:00:45]} 46. b4 {[%emt 0:08:45]} Qc4 {[%emt 0:06:20]} 47. h3 {[%emt 0:00:58]} h5 {[%emt 0:05:23]} 48. Kh2 {[%emt 0:01:07]} Kh6 {[%emt 0:02:23]} 49. Bc5 {[%emt 0:01:47]} Qf1 {[%emt 0:00:47]} 50. b3 {[%emt 0:00:49]} Qd3 {[%emt 0:01:34]} 51. Qe3 {[%emt 0:01:13]} Qb5 {[%emt 0:00:26]} 52. Qc1 {[%emt 0:01:48]} Qd3 {[%emt 0:00:03]} 53. Qe3 {[%emt 0:00:43]} Qf1 {[%emt 0:00:34]} 54. Qd2 {[%emt 0:00:23]} Qd3 {[%emt 0:00:09]} 1/2-1/2